fUST/lending_fUST_20240118
["ID","MTS","AMOUNT","RATE_DAILY","PERIOD"]
[311973626,1705524619329,-165.91837395,0.00019721,2]
[311973710,1705524633794,-154.9690062,0.00019721,3]
[311973712,1705524633804,-167.925873,0.00020299,2]
[311973713,1705524633814,-833.62972708,0.00020816,2]
[311973716,1705524633850,-671.3367612,0.00020816,2]
[311973719,1705524633862,-4017.93711642,0.00020816,2]
[311973722,1705524633872,-1324.36874627,0.0002105,2]
[311973725,1705524633881,-153.04448039,0.00021817,2]
[311973727,1705524633890,-1711.92,0.00021907,3]
[311973730,1705524633899,-3264.52,0.00021907,3]
[311973733,1705524633908,-2720.43,0.00021907,3]
[311973736,1705524633917,-28229.24980376,0.00021914,2]
[311973739,1705524633926,-470.24915818,0.00021915,2]
[311973742,1705524633935,-155.56443103,0.00021915,2]
[311973745,1705524633944,-3741.87136759,0.00021915,2]
[311973748,1705524633952,-561.04928644,0.00021915,2]
[311973750,1705524633961,-154.98450155,0.00021915,2]
[311973753,1705524633971,-5745.01158561,0.00021915,2]
[311973755,1705524633980,-679.24429502,0.00021915,2]
[311973758,1705524633989,-9276.15523392,0.00021915,2]
[311973761,1705524633997,-130.89160678,0.00021916,2]
[311973868,1705524638411,-2267.02,0.00021907,3]
[311973870,1705524638420,-1808.32923466,0.00021916,2]
[311973872,1705524638431,-1629.52503523,0.00021917,2]
[311973874,1705524638440,-500.0,0.00021917,2]
[311973876,1705524638449,-500.0,0.00021917,2]
[311973878,1705524638458,-500.0,0.00021917,2]
[311973880,1705524638467,-500.0,0.00021917,2]
[311973882,1705524638477,-500.0,0.00021917,2]
[311973885,1705524638486,-500.0,0.00021917,2]
[311973887,1705524638495,-500.0,0.00021917,2]
[311973888,1705524638505,-500.0,0.00021917,2]
[311973890,1705524638514,-500.0,0.00021917,2]
[311973892,1705524638524,-645.29925954,0.00021917,2]
[311973896,1705524638533,-500.0,0.00021917,2]
[311973899,1705524638542,-500.0,0.00021917,2]
[311973902,1705524638551,-500.0,0.00021917,2]
[311973905,1705524638560,-158.10850089,0.00021917,2]
[311973907,1705524638569,-500.0,0.00021917,2]
[311973908,1705524638578,-500.0,0.00021917,2]
[311973910,1705524638587,-500.23364505,0.00021917,2]
[311973912,1705524638596,-500.0,0.00021917,2]
[311973914,1705524638606,-557.42888858,0.00021917,2]
[311973916,1705524638616,-502.38159096,0.00021917,2]
[311973918,1705524638626,-500.0,0.00021917,2]
[311973921,1705524638635,-500.0,0.00021917,2]
[311973922,1705524638645,-500.0,0.00021917,2]
[311973924,1705524638653,-500.0,0.00021917,2]
[311973926,1705524638663,-500.0,0.00021917,2]
[311973928,1705524638672,-500.0,0.00021917,2]
[311973930,1705524638682,-506.20696998,0.00021917,2]
[311973932,1705524638690,-500.0,0.00021917,2]
[311973934,1705524638699,-573.69698884,0.00021917,2]
[311973936,1705524638708,-500.0,0.00021917,2]
[311973938,1705524638717,-500.0,0.00021917,2]
[311973940,1705524638726,-502.77165723,0.00021917,2]
[311973942,1705524638735,-500.0,0.00021917,2]
[311973943,1705524638744,-1000.0,0.00021917,2]
[311973945,1705524638753,-500.0,0.00021917,2]
[311973947,1705524638762,-500.0,0.00021917,2]
[311973949,1705524638771,-500.0,0.00021917,2]
[311973951,1705524638779,-500.0,0.00021917,2]
[311973953,1705524638788,-500.0,0.00021917,2]
[311973954,1705524638798,-500.0,0.00021917,2]
[311973955,1705524638807,-532.25318278,0.00021917,2]
[311973956,1705524638816,-500.0,0.00021917,2]
[311973957,1705524638825,-499.94312633,0.00021917,2]
[311973958,1705524638835,-500.0,0.00021917,2]
[311973959,1705524638845,-500.0,0.00021917,2]
[311973960,1705524638860,-500.0,0.00021917,2]
[311973961,1705524638875,-500.0,0.00021917,2]
[311973962,1705524638884,-243.60659354,0.00021917,2]
[311973963,1705524638894,-500.0,0.00021917,2]
[311973964,1705524638903,-500.0,0.00021917,2]
[311973965,1705524638913,-500.0,0.00021917,2]
[311973966,1705524638924,-500.0,0.00021917,2]
[311973967,1705524638933,-220.0,0.00021917,2]
[311973968,1705524638943,-500.0,0.00021917,2]
[311973969,1705524638954,-328.41605815,0.00021917,2]
[311973970,1705524638965,-500.0,0.00021917,2]
[311973971,1705524638974,-510.55718225,0.00021917,2]
[311973972,1705524638984,-500.0,0.00021917,2]
[311973973,1705524638993,-500.0,0.00021917,2]
[311973974,1705524639003,-500.0,0.00021917,2]
[311973975,1705524639012,-500.0,0.00021917,2]
[311973976,1705524639022,-500.0,0.00021917,2]
[311973977,1705524639031,-500.0,0.00021917,2]
[311973978,1705524639041,-500.0,0.00021917,2]
[311973979,1705524639050,-500.0,0.00021917,2]
[311973980,1705524639060,-500.0,0.00021917,2]
[311973981,1705524639069,-385.29,0.00021917,2]
[311973982,1705524639079,-500.0,0.00021917,2]
[311973983,1705524639088,-500.0,0.00021917,2]
[311973984,1705524639097,-500.0,0.00021917,2]
[311973985,1705524639108,-384.42022203,0.00021917,2]
[311973986,1705524639119,-500.0,0.00021917,2]
[311973987,1705524639128,-500.0,0.00021917,2]
[311973988,1705524639137,-500.0,0.00021917,2]
[311973989,1705524639147,-500.0,0.00021917,2]
[311973990,1705524639156,-500.0,0.00021917,2]
[311973991,1705524639168,-502.64320736,0.00021917,2]
[311973992,1705524639177,-500.0,0.00021917,2]
[311973993,1705524639187,-502.86947802,0.00021917,2]
[311973994,1705524639196,-500.0,0.00021917,2]
[311973995,1705524639205,-500.0,0.00021917,2]
[311973996,1705524639215,-500.0,0.00021917,2]
[311973997,1705524639224,-500.0,0.00021917,2]
[311973998,1705524639234,-163.18093818,0.00021917,2]
[311973999,1705524639243,-378.41059632,0.00021917,2]
[311974000,1705524639252,-533.15981877,0.00021917,2]
[311974001,1705524639261,-500.0,0.00021917,2]
[311974002,1705524639271,-500.0,0.00021917,2]
[311974003,1705524639280,-500.0,0.00021917,2]
[311974004,1705524639290,-547.3876798,0.00021917,2]
[311974005,1705524639299,-500.0,0.00021917,2]
[311974006,1705524639309,-500.0,0.00021917,2]
[311974007,1705524639430,-500.0,0.00021917,2]
[311974008,1705524639439,-500.0,0.00021917,2]
[311974009,1705524639449,-500.0,0.00021917,2]
[311974010,1705524639458,-500.0,0.00021917,2]
[311974011,1705524639467,-503.2198619,0.00021917,2]
[311974012,1705524639476,-500.0,0.00021917,2]
[311974013,1705524639485,-500.0,0.00021917,2]
[311974014,1705524639494,-500.0,0.00021917,2]
[311974015,1705524639503,-500.0,0.00021917,2]
[311974016,1705524639512,-500.0,0.00021917,2]
[311974017,1705524639521,-470.96335359,0.00021917,2]
[311974018,1705524639530,-213.44584574,0.00021917,2]
[311974019,1705524639540,-500.0,0.00021917,2]
[311974020,1705524639549,-500.0,0.00021917,2]
[311974021,1705524639558,-500.0,0.00021917,2]
[311974022,1705524639567,-500.0,0.00021917,2]
[311974023,1705524639577,-500.0,0.00021917,2]
[311974024,1705524639586,-500.0,0.00021917,2]
[311974025,1705524639596,-500.0,0.00021917,2]
[311974026,1705524639605,-500.0,0.00021917,2]
[311974027,1705524639614,-588.85286775,0.00021917,2]
[311974028,1705524639626,-500.0,0.00021917,2]
[311974029,1705524639636,-502.42486477,0.00021917,2]
[311974030,1705524639646,-500.0,0.00021917,2]
[311974031,1705524639656,-500.0,0.00021917,2]
[311974032,1705524639665,-500.0,0.00021917,2]
[311974033,1705524639675,-500.0,0.00021917,2]
[311974034,1705524639684,-500.0,0.00021917,2]
[311974035,1705524639694,-500.0,0.00021917,2]
[311974036,1705524639704,-301.39905633,0.00021917,2]
[311974037,1705524639713,-500.0,0.00021917,2]
[311974038,1705524639722,-202.7786188,0.00021917,2]
[311974039,1705524639731,-500.0,0.00021917,2]
[311974040,1705524639741,-500.0,0.00021917,2]
[311974042,1705524639751,-500.0,0.00021917,2]
[311974044,1705524639760,-500.0,0.00021917,2]
[311974046,1705524639769,-500.0,0.00021917,2]
[311974047,1705524639778,-500.0,0.00021917,2]
[311974049,1705524639787,-500.0,0.00021917,2]
[311974050,1705524639796,-500.0,0.00021917,2]
[311974051,1705524639805,-500.0,0.00021917,2]
[311974052,1705524639814,-500.0,0.00021917,2]
[311974053,1705524639823,-500.0,0.00021917,2]
[311974054,1705524639833,-500.0,0.00021917,2]
[311974055,1705524639841,-500.0,0.00021917,2]
[311974056,1705524639850,-500.0,0.00021917,2]
[311974057,1705524639860,-500.0,0.00021917,2]
[311974058,1705524639873,-500.0,0.00021917,2]
[311974059,1705524639882,-500.0,0.00021917,2]
[311974060,1705524639891,-500.0,0.00021917,2]
[311974061,1705524639900,-500.0,0.00021917,2]
[311974062,1705524639909,-500.0,0.00021917,2]
[311974063,1705524639918,-500.0,0.00021917,2]
[311974064,1705524639927,-500.0,0.00021917,2]
[311974065,1705524639937,-500.0,0.00021917,2]
[311974066,1705524639946,-500.0,0.00021917,2]
[311974067,1705524639955,-500.0,0.00021917,2]
[311974068,1705524639965,-500.0,0.00021917,2]
[311974069,1705524639974,-500.0,0.00021917,2]
[311974070,1705524639983,-500.0,0.00021917,2]
[311974071,1705524639992,-242.45759116,0.00021917,2]
[311974072,1705524640002,-500.0,0.00021917,2]
[311974073,1705524640011,-607.63560946,0.00021917,2]
[311974074,1705524640020,-500.0,0.00021917,2]
[311974075,1705524640029,-355.66160446,0.00021917,2]
[311974076,1705524640039,-500.0,0.00021917,2]
[311974077,1705524640048,-500.0,0.00021917,2]
[311974078,1705524640058,-611.17086737,0.00021917,2]
[311974079,1705524640068,-500.0,0.00021917,2]
[311974080,1705524640077,-500.0,0.00021917,2]
[311974081,1705524640087,-500.0,0.00021917,2]
[311974082,1705524640096,-500.0,0.00021917,2]
[311974083,1705524640105,-500.0,0.00021917,2]
[311974084,1705524640114,-500.0,0.00021917,2]
[311974085,1705524640125,-500.0,0.00021917,2]
[311974086,1705524640134,-500.0,0.00021917,2]
[311974087,1705524640143,-500.0,0.00021917,2]
[311974088,1705524640153,-500.0,0.00021917,2]
[311974089,1705524640163,-500.0,0.00021917,2]
[311974090,1705524640172,-500.0,0.00021917,2]
[311974091,1705524640182,-500.0,0.00021917,2]
[311974092,1705524640191,-500.0,0.00021917,2]
[311974093,1705524640200,-500.0,0.00021917,2]
[311974094,1705524640209,-500.0,0.00021917,2]
[311974095,1705524640218,-500.0,0.00021917,2]
[311974096,1705524640228,-500.0,0.00021917,2]
[311974097,1705524640238,-200.0,0.00021917,2]
[311974098,1705524640247,-500.0,0.00021917,2]
[311974099,1705524640256,-501.28852085,0.00021917,2]
[311974100,1705524640265,-500.0,0.00021917,2]
[311974101,1705524640274,-500.0,0.00021917,2]
[311974102,1705524640284,-500.0,0.00021917,2]
[311974103,1705524640293,-6097.97,0.00021917,2]
[311974104,1705524640302,-500.0,0.00021917,2]
[311974106,1705524640311,-500.0,0.00021917,2]
[311974107,1705524640320,-745.53,0.00021917,2]
[311974108,1705524640330,-500.0,0.00021917,2]
[311974109,1705524640341,-418.87603852,0.00021917,2]
[311974110,1705524640349,-500.0,0.00021917,2]
[311974111,1705524640363,-338.65675114,0.00021917,2]
[311974112,1705524640375,-500.0,0.00021917,2]
[311974113,1705524640386,-500.0,0.00021917,2]
[311974114,1705524640395,-500.0,0.00021917,2]
[311974115,1705524640405,-500.0,0.00021917,2]
[311974116,1705524640414,-500.0,0.00021917,2]
[311974117,1705524640423,-500.0,0.00021917,2]
[311974118,1705524640433,-500.0,0.00021917,2]
[311974119,1705524640442,-500.0,0.00021917,2]
[311974120,1705524640451,-1288.63,0.00021917,2]
[311974121,1705524640461,-500.0,0.00021917,2]
[311974122,1705524640470,-500.0,0.00021917,2]
[311974123,1705524640480,-500.0,0.00021917,2]
[311974124,1705524640489,-1124.44,0.00021917,2]
[311974125,1705524640499,-638.41092059,0.00021917,2]
[311974126,1705524640509,-1333.0,0.00021917,2]
[311974127,1705524640518,-500.0,0.00021917,2]
[311974128,1705524640528,-500.0,0.00021917,2]
[311974129,1705524640538,-500.0,0.00021917,2]
[311974130,1705524640547,-500.0,0.00021917,2]
[311974131,1705524640556,-500.0,0.00021917,2]
[311974132,1705524640566,-531.31,0.00021917,2]
[311974133,1705524640575,-500.0,0.00021917,2]
[311974134,1705524640585,-500.0,0.00021917,2]
[311974135,1705524640594,-500.0,0.00021917,2]
[311974136,1705524640603,-500.0,0.00021917,2]
[311974137,1705524640612,-500.0,0.00021917,2]
[311974138,1705524640621,-500.0,0.00021917,2]
[311974139,1705524640630,-539.44145748,0.00021917,2]
[311974140,1705524640638,-500.0,0.00021917,2]
[311974142,1705524640647,-500.0,0.00021917,2]
[311974143,1705524640656,-500.0,0.00021917,2]
[311974144,1705524640664,-500.0,0.00021917,2]
[311974145,1705524640674,-500.0,0.00021917,2]
[311974146,1705524640683,-2841.23,0.00021917,2]
[311974147,1705524640691,-500.0,0.00021917,2]
[311974148,1705524640701,-500.0,0.00021917,2]
[311974149,1705524640710,-500.0,0.00021917,2]
[311974150,1705524640720,-561.21,0.00021917,2]
[311974151,1705524640730,-490.57231035,0.00021917,2]
[311974152,1705524640740,-575.58,0.00021917,2]
[311974153,1705524640750,-500.0,0.00021917,2]
[311974154,1705524640759,-500.0,0.00021917,2]
[311974155,1705524640769,-500.0,0.00021917,2]
[311974156,1705524640778,-500.0,0.00021917,2]
[311974157,1705524640787,-500.0,0.00021917,2]
[311974158,1705524640796,-500.0,0.00021917,2]
[311974159,1705524640806,-501.93703226,0.00021917,2]
[311974160,1705524640815,-201.66657356,0.00021917,2]
[311974161,1705524640824,-500.0,0.00021917,2]
[311974162,1705524640833,-500.0,0.00021917,2]
[311974163,1705524640842,-500.0,0.00021917,2]
[311974164,1705524640852,-2172.8,0.00021917,2]
[311974165,1705524640861,-500.0,0.00021917,2]
[311974166,1705524640871,-500.0,0.00021917,2]
[311974167,1705524640880,-500.0,0.00021917,2]
[311974168,1705524640889,-500.0,0.00021917,2]
[311974169,1705524640899,-500.0,0.00021917,2]
[311974170,1705524640908,-500.0,0.00021917,2]
[311974171,1705524640917,-500.0,0.00021917,2]
[311974172,1705524640926,-500.0,0.00021917,2]
[311974173,1705524640935,-500.0,0.00021917,2]
[311974174,1705524640944,-530.74249205,0.00021917,2]
[311974175,1705524640953,-500.0,0.00021917,2]
[311974176,1705524640963,-500.0,0.00021917,2]
[311974177,1705524640972,-500.0,0.00021917,2]
[311974178,1705524640981,-500.0,0.00021917,2]
[311974179,1705524640990,-500.0,0.00021917,2]
[311974180,1705524641000,-500.0,0.00021917,2]
[311974181,1705524641009,-500.0,0.00021917,2]
[311974182,1705524641019,-627.39276305,0.00021917,2]
[311974183,1705524641028,-500.0,0.00021917,2]
[311974184,1705524641037,-500.0,0.00021917,2]
[311974185,1705524641046,-500.0,0.00021917,2]
[311974186,1705524641056,-500.0,0.00021917,2]
[311974187,1705524641065,-166.666666,0.00021918,2]
[311974188,1705524641075,-500.0,0.00021966,2]
[311974189,1705524641085,-293.1976279,0.00022,4]
[311974190,1705524641094,-3955.54830897,0.00022,2]
[311974191,1705524641104,-425.53656097,0.00022,2]
[311974192,1705524641114,-244.69,0.00022053,2]
[311974193,1705524641125,-372.85,0.00022053,2]
[311974194,1705524641134,-500.0,0.00022054,2]
[311974195,1705524641143,-500.0,0.00022054,2]
[311974196,1705524641153,-500.0,0.00022054,2]
[311974197,1705524641162,-500.0,0.00022054,2]
[311974198,1705524641171,-500.0,0.00022054,2]
[311974199,1705524641181,-500.0,0.00022054,2]
[311974200,1705524641190,-500.0,0.00022054,2]
[311974201,1705524641199,-500.0,0.00022054,2]
[311974202,1705524641209,-500.0,0.00022054,2]
[311974203,1705524641218,-500.0,0.00022054,2]
[311974204,1705524641227,-500.0,0.00022054,2]
[311974205,1705524641308,-1000.0,0.00022054,2]
[311974206,1705524641317,-500.0,0.00022054,2]
[311974207,1705524641327,-500.0,0.00022054,2]
[311974208,1705524641338,-500.0,0.00022054,2]
[311974209,1705524641351,-500.0,0.00022054,2]
[311974210,1705524641364,-527.57532285,0.00022054,2]
[311974211,1705524641375,-373.07904579,0.00022054,2]
[311974212,1705524641384,-500.0,0.00022054,2]
[311974213,1705524641394,-500.0,0.00022054,2]
[311974214,1705524641403,-200.08832143,0.00022054,2]
[311974215,1705524641412,-508.34806306,0.00022054,2]
[311974216,1705524641423,-580.64,0.00022054,2]
[311974217,1705524641435,-500.0,0.00022054,2]
[311974218,1705524641445,-509.09162985,0.00022054,2]
[311974219,1705524641454,-500.0,0.00022054,2]
[311974220,1705524641464,-500.0,0.00022054,2]
[311974221,1705524641474,-500.0,0.00022054,2]
[311974222,1705524641483,-529.35214172,0.00022054,2]
[311974223,1705524641493,-500.0,0.00022054,2]
[311974224,1705524641502,-500.0,0.00022054,2]
[311974225,1705524641512,-500.0,0.00022054,2]
[311974226,1705524641521,-562.10402669,0.00022054,2]
[311974227,1705524641530,-500.0,0.00022054,2]
[311974228,1705524641540,-500.0,0.00022054,2]
[311974229,1705524641549,-500.0,0.00022054,2]
[311974230,1705524641558,-251.01,0.00022054,2]
[311974231,1705524641567,-636.21,0.00022054,2]
[311974232,1705524641577,-501.69175222,0.00022054,2]
[311974233,1705524641587,-500.0,0.00022054,2]
[311974234,1705524641596,-520.3,0.00022054,2]
[311974235,1705524641606,-506.24672197,0.00022054,2]
[311974236,1705524641615,-608.84,0.00022054,2]
[311974237,1705524641627,-500.0,0.00022054,2]
[311974238,1705524641638,-500.0,0.00022054,2]
[311974239,1705524641647,-500.0,0.00022054,2]
[311974240,1705524641657,-502.76389205,0.00022054,2]
[311974241,1705524641666,-174.74456145,0.00022054,2]
[311974242,1705524641676,-500.0,0.00022054,2]
[311974243,1705524641685,-500.0,0.00022054,2]
[311974244,1705524641695,-500.0,0.00022054,2]
[311974245,1705524641704,-500.0,0.00022054,2]
[311974246,1705524641714,-500.0,0.00022054,2]
[311974247,1705524641724,-500.0,0.00022054,2]
[311974248,1705524641734,-500.0,0.00022054,2]
[311974249,1705524641743,-500.0,0.00022054,2]
[311974250,1705524641753,-500.0,0.00022054,2]
[311974251,1705524641763,-500.0,0.00022054,2]
[311974252,1705524641773,-500.0,0.00022054,2]
[311974253,1705524641782,-500.0,0.00022054,2]
[311974254,1705524641792,-500.0,0.00022054,2]
[311974255,1705524641801,-613.83179495,0.00022054,2]
[311974256,1705524641810,-500.0,0.00022054,2]
[311974257,1705524641820,-500.0,0.00022054,2]
[311974258,1705524641830,-621.87,0.00022054,2]
[311974259,1705524641838,-500.0,0.00022054,2]
[311974260,1705524641849,-200.0,0.00022054,2]
[311974261,1705524641858,-325.91663912,0.00022054,2]
[311974262,1705524641867,-500.0,0.00022054,2]
[311974263,1705524641881,-6097.97,0.00022054,2]
[311974264,1705524641890,-500.0,0.00022054,2]
[311974265,1705524641899,-745.53,0.00022054,2]
[311974266,1705524641908,-600.53279554,0.00022054,2]
[311974267,1705524641918,-606.06001327,0.00022054,2]
[311974268,1705524641927,-509.68802512,0.00022054,2]
[311974269,1705524641936,-500.0,0.00022054,2]
[311974270,1705524641946,-500.0,0.00022054,2]
[311974271,1705524641956,-1288.63,0.00022054,2]
[311974272,1705524641965,-500.0,0.00022054,2]
[311974273,1705524641974,-277.13,0.00022054,2]
[311974274,1705524641983,-502.23964896,0.00022054,2]
[311974275,1705524641994,-1124.44,0.00022054,2]
[311974276,1705524642004,-1333.0,0.00022054,2]
[311974277,1705524642014,-500.0,0.00022054,2]
[311974278,1705524642023,-531.31,0.00022054,2]
[311974279,1705524642032,-500.0,0.00022054,2]
[311974280,1705524642042,-500.0,0.00022054,2]
[311974281,1705524642051,-500.0,0.00022054,2]
[311974282,1705524642060,-500.0,0.00022054,2]
[311974283,1705524642070,-500.0,0.00022054,2]
[311974284,1705524642079,-2841.23,0.00022054,2]
[311974285,1705524642089,-500.0,0.00022054,2]
[311974286,1705524642098,-153.49030981,0.00022054,2]
[311974287,1705524642107,-500.0,0.00022054,2]
[311974288,1705524642116,-561.21,0.00022054,2]
[311974289,1705524642128,-575.58,0.00022054,2]
[311974290,1705524642138,-500.0,0.00022054,2]
[311974291,1705524642147,-500.0,0.00022054,2]
[311974292,1705524642157,-500.0,0.00022054,2]
[311974293,1705524642166,-500.0,0.00022054,2]
[311974294,1705524642175,-500.0,0.00022054,2]
[311974295,1705524642185,-500.0,0.00022054,2]
[311974296,1705524642194,-500.0,0.00022054,2]
[311974297,1705524642203,-2172.8,0.00022054,2]
[311974298,1705524642213,-500.0,0.00022054,2]
[311974299,1705524642222,-500.0,0.00022054,2]
[311974300,1705524642232,-337.81788515,0.00022054,2]
[311974301,1705524642241,-500.0,0.00022054,2]
[311974302,1705524642250,-500.0,0.00022054,2]
[311974303,1705524642259,-372.76345323,0.00022054,2]
[311974304,1705524642268,-500.0,0.00022054,2]
[311974305,1705524642277,-500.0,0.00022054,2]
[311974306,1705524642287,-9111.67082876,0.00022124,2]
[311974307,1705524642296,-500.0,0.00022191,2]
[311974308,1705524642306,-500.0,0.00022191,2]
[311974309,1705524642315,-500.0,0.00022191,2]
[311974310,1705524642324,-168.26455569,0.00022191,2]
[311974311,1705524642334,-541.59,0.00022191,2]
[311974312,1705524642343,-500.0,0.00022191,2]
[311974313,1705524642352,-500.0,0.00022191,2]
[311974314,1705524642365,-500.0,0.00022191,2]
[311974315,1705524642376,-500.0,0.00022191,2]
[311974316,1705524642386,-500.0,0.00022191,2]
[311974317,1705524642396,-500.0,0.00022191,2]
[311974318,1705524642406,-500.0,0.00022191,2]
[311974319,1705524642415,-500.0,0.00022191,2]
[311974320,1705524642425,-500.0,0.00022191,2]
[311974321,1705524642434,-500.0,0.00022191,2]
[311974322,1705524642444,-500.0,0.00022191,2]
[311974323,1705524642454,-500.0,0.00022191,2]
[311974324,1705524642463,-270.58,0.00022191,2]
[311974325,1705524642472,-500.0,0.00022191,2]
[311974326,1705524642482,-500.0,0.00022191,2]
[311974327,1705524642491,-500.0,0.00022191,2]
[311974328,1705524642500,-150.34139212,0.00022191,2]
[311974329,1705524642510,-6097.97,0.00022191,2]
[311974330,1705524642519,-745.53,0.00022191,2]
[311974331,1705524642529,-500.0,0.00022191,2]
[311974332,1705524642538,-1288.63,0.00022191,2]
[311974333,1705524642547,-500.0,0.00022191,2]
[311974334,1705524642557,-1124.44,0.00022191,2]
[311974335,1705524642566,-1333.0,0.00022191,2]
[311974336,1705524642575,-531.31,0.00022191,2]
[311974337,1705524642584,-500.0,0.00022191,2]
[311974338,1705524642593,-521.35,0.00022191,2]
[311974339,1705524642602,-500.0,0.00022191,2]
[311974340,1705524642611,-500.0,0.00022191,2]
[311974341,1705524642621,-500.0,0.00022191,2]
[311974342,1705524642630,-2841.23,0.00022191,2]
[311974343,1705524642639,-500.0,0.00022191,2]
[311974344,1705524642649,-500.0,0.00022191,2]
[311974345,1705524642659,-561.21,0.00022191,2]
[311974346,1705524642668,-575.58,0.00022191,2]
[311974347,1705524642677,-500.0,0.00022191,2]
[311974348,1705524642687,-500.0,0.00022191,2]
[311974349,1705524642696,-215.24,0.00022191,2]
[311974350,1705524642706,-500.0,0.00022191,2]
[311974351,1705524642716,-500.0,0.00022191,2]
[311974352,1705524642725,-2172.8,0.00022191,2]
[311974353,1705524642734,-500.0,0.00022191,2]
[311974354,1705524642743,-500.0,0.00022191,2]
[311974355,1705524642752,-500.0,0.00022191,2]
[311974356,1705524642761,-500.0,0.00022328,2]
[311974357,1705524642771,-500.0,0.00022328,2]
[311974358,1705524642780,-500.0,0.00022328,2]
[311974360,1705524642789,-500.0,0.00022328,2]
[311974362,1705524642798,-500.0,0.00022328,2]
[311974363,1705524642807,-500.0,0.00022328,2]
[311974364,1705524642816,-177.86,0.00022328,2]
[311974365,1705524642825,-310.56,0.00022328,2]
[311974366,1705524642834,-219.09025803,0.00022328,2]
[311974367,1705524642843,-6097.97,0.00022328,2]
[311974368,1705524642853,-745.53,0.00022328,2]
[311974369,1705524642862,-500.0,0.00022328,2]
[311974371,1705524642871,-1288.63,0.00022328,2]
[311974372,1705524642881,-500.0,0.00022328,2]
[311974373,1705524642890,-1124.44,0.00022328,2]
[311974374,1705524642900,-1333.0,0.00022328,2]
[311974375,1705524642909,-531.31,0.00022328,2]
[311974376,1705524642918,-165.15,0.00022328,2]
[311974377,1705524642927,-500.0,0.00022328,2]
[311974378,1705524642935,-500.0,0.00022328,2]
[311974379,1705524642945,-500.0,0.00022328,2]
[311974380,1705524642954,-2841.23,0.00022328,2]
[311974381,1705524642963,-500.0,0.00022328,2]
[311974382,1705524642972,-500.0,0.00022328,2]
[311974383,1705524642982,-561.21,0.00022328,2]
[311974384,1705524642991,-575.58,0.00022328,2]
[311974385,1705524643000,-500.0,0.00022328,2]
[311974388,1705524643078,-647.99,0.00022328,2]
[311974389,1705524643087,-500.0,0.00022328,2]
[311974390,1705524643096,-500.0,0.00022328,2]
[311974391,1705524643106,-2172.8,0.00022328,2]
[311974392,1705524643115,-500.0,0.00022328,2]
[311974393,1705524643125,-66733.43574535,0.00022365,2]
[311974394,1705524643134,-166.666666,0.00022431,2]
[311974395,1705524643144,-166.80011479,0.00022464,2]
[311974396,1705524643153,-500.0,0.00022465,2]
[311974397,1705524643162,-500.0,0.00022465,2]
[311974398,1705524643171,-500.0,0.00022465,2]
[311974399,1705524643181,-500.0,0.00022465,2]
[311974400,1705524643190,-500.0,0.00022465,2]
[311974401,1705524643199,-500.0,0.00022465,2]